Workbook

Sheet База_данних
F1: Дані про плля в господарствах Дані про плля в господарствах Дані про плля в господарствах
A2: Господарства: | B2: Диспечера: | C2: Дані водіїв | F2: Перемога | I2: Агротехнологія | L2: Відродження | O2: Еліта | R2: Еліта Остап'є | U2: Райпостач | X2: Світоч | AA2: Зоря | AD2: Хлібороб
C3: Водій | D3: Автомобіль | E3: Телефон | F3: Поле | G3: Площа | H3: Відстань до ККЗ | I3: Поле | J3: Площа | K3: Відстань до ККЗ | L3: Поле | M3: Площа | N3: Відстань до ККЗ | O3: Поле | P3: Площа | Q3: Відстань до ККЗ | R3: Поле | S3: Площа | T3: Відстань до ККЗ | U3: Поле | V3: Площа | W3: Відстань до ККЗ | X3: Поле | Y3: Площа | Z3: Відстань до ККЗ | AA3: Поле | AB3: Площа | AC3: Відстань до ККЗ | AD3: Поле | AE3: Площа | AF3: Відстань до ККЗ
A4: Перемога | B4: Біленька Т.П. | C4: Арендаренко | D4: Вольво | L4: вакулівка | M4: 12 | N4: 22 | O4: 24.25 | P4: 44.35 | Q4: 77 | AD4: 1 | AE4: 96.5 | AF4: 68
A5: Агротехнологія | B5: Іщенко О.О. | C5: Бабиченко | D5: Вольво | L5: 9-10 бр.3 | M5: 200 | N5: 20 | O5: п.27 | P5: 36.11 | Q5: 77 | AD5: 6 | AE5: 75.5 | AF5: 63.5
A6: Відродження | B6: Койнаш В.А. | C6: Годзенко | D6: Камаз | L6: п.7-3бр. | M6: 98 | N6: 21 | O6: п.26 | P6: 35 | Q6: 77 | AD6: 5 | AE6: 47.5 | AF6: 62.5
A7: Еліта | B7: Косолап Н.П. | C7: Демко | D7: Маз | L7: п.8-3бр. | M7: 102.19 | N7: 19 | O7: ФГ"Лобода" | P7: 39.9 | Q7: 77 | AD7: 7 | AE7: 91 | AF7: 67.5
A8: Еліта Остап'є | B8: Лаврік Н.О. | C8: Кузьменко В | D8: Вольво | L8: п.3кор-3бр. | M8: 12.39 | N8: 19 | O8: п.32 | P8: 60 | Q8: 69 | AD8: 8 | AE8: 120.5 | AF8: 66
A9: Райпостач | B9: Лукаш С.М. | C9: Кузьменко А | D9: Камаз | L9: п.3-4-3бр. | M9: 121.46 | N9: 17 | O9: п.15 | P9: 27 | Q9: 73 | AD9: 4 | AE9: 45.5 | AF9: 68
A10: Світоч | B10: Пастушенко О.І | C10: Лисівець | D10: Камаз | L10: п.6 3бр. | M10: 96.92 | N10: 14 | O10: п.53 | P10: 74 | Q10: 68 | AD10: 3 | AE10: 22 | AF10: 68
A11: Зоря | B11: Попик А.В. | C11: Мандич | D11: Камаз | L11: Корм.діл.3бр. | M11: 17.6 | N11: 17 | O11: п.46 | P11: 72 | Q11: 68 | AD11: 9 | AE11: 81 | AF11: 69
A12: Хлібороб | B12: Титаренко С.В. | C12: Михайлик | D12: Камаз | L12: п.6 2бр. | M12: 96.92 | N12: 14 | O12: п.47 | P12: 41.12 | Q12: 67 | AD12: 2 | AE12: Терещен | AF12: 62.5
B13: Яресько А.А. | C13: Пальонка | D13: Вольво | L13: п.7 2бр. | M13: 35.83 | N13: 13
B14: Яресько А.В. | C14: Соломка | D14: Вольво | L14: п.8 2бр. | M14: 103.51 | N14: 14
B15: Ярмола О.В. | C15: Співак | D15: Камаз | L15: обкос полів | M15: 10 | N15: 20
C16: Срібний | D16: Вольво
C17: Суботін | D17: Камаз
C18: Тонкошкур | D18: Камаз
C19: Чаричанський | D19: Камаз
C20: Шевченко | D20: Камаз
C21: Губаренко | D21: Камаз

Sheet Аналіз кукурудзи
A3: Дата | B3: Водій | C3: Автомобіль | D3: ходки | E3: тони | F3: КМ | G3: Заправка | H3: Використано ПММ | I3: остаток | K3: Водій | L3: Автомобіль | M3: Перевезена вага всього | N3: Кількість ходок всього | O3: Перевезена вага по фільтру | P3: Кількість ходок по фільтру | Q3: Кількість бункерів по фільтрові | R3: Пройдений кілометраж (прац. при вкл.фільтрі)
A4: 2014-09-05 | B4: Бабиченко | C4: =VLOOKUP(B4:B4958,База_авто,2,0) -> Вольво | G4: 400 | H4: =F4*0.4 -> 0 | I4: =400+G4-H4 -> 800 | K4: =База_данних!C4 -> Арендаренко | L4: =База_данних!D4 -> Вольво | M4: =SUMIF(Кукурудза!$G$6:$G$27,База_данних!C4,Кукурудза!$AA$6:$AA$27) -> 36090 | N4: =SUMIF(Кукурудза!$G$6:$G$27,База_данних!C4,Кукурудза!$A$6:$A$27) -> 1 | O4: =SUMPRODUCT((Кукурудза!$G$6:$G$27=База_данних!C4)*SUBTOTAL(9,OFFSET(Кукурудза!AA$6,ROW(Кукурудза!$AA$6:$AA$27)-ROW(Кукурудза!$AA$6),))) -> 36090 | P4: =SUMPRODUCT((Кукурудза!$G$6:$G$27=База_данних!C4)*SUBTOTAL(9,OFFSET(Кукурудза!A$6,ROW(Кукурудза!$A$6:$A$27)-ROW(Кукурудза!$A$6),))) -> 1 | Q4: =SUMPRODUCT((Кукурудза!$G$6:$G$27=База_данних!C4)*SUBTOTAL(9,OFFSET(Кукурудза!L$6,ROW(Кукурудза!$L$6:$L$27)-ROW(Кукурудза!$L$6),))) -> 16 | R4: =SUMPRODUCT(((Кукурудза!$G$6:$G$27=База_данних!C4)*SUBTOTAL(9,OFFSET(Кукурудза!K$6,ROW(Кукурудза!$K$6:$K$27)-ROW(Кукурудза!$K$6),)))*2) -> 263
A5: 2014-09-05 | B5: Соломка | C5: =VLOOKUP(B5:B4959,База_авто,2,0) -> Вольво | G5: 400 | H5: =F5*0.4 -> 0 | I5: =400+G5-H5 -> 800 | K5: =База_данних!C5 -> Бабиченко | L5: =База_данних!D5 -> Вольво | M5: =SUMIF(Кукурудза!$G$6:$G$27,База_данних!C5,Кукурудза!$AA$6:$AA$27) -> 145510 | N5: =SUMIF(Кукурудза!$G$6:$G$27,База_данних!C5,Кукурудза!$A$6:$A$27) -> 4 | O5: =SUMPRODUCT((Кукурудза!$G$6:$G$27=База_данних!C5)*SUBTOTAL(9,OFFSET(Кукурудза!AA$6,ROW(Кукурудза!$AA$6:$AA$27)-ROW(Кукурудза!$AA$6),))) -> 145510 | P5: =SUMPRODUCT((Кукурудза!$G$6:$G$27=База_данних!C5)*SUBTOTAL(9,OFFSET(Кукурудза!A$6,ROW(Кукурудза!$A$6:$A$27)-ROW(Кукурудза!$A$6),))) -> 4 | Q5: =SUMPRODUCT((Кукурудза!$G$6:$G$27=База_данних!C5)*SUBTOTAL(9,OFFSET(Кукурудза!L$6,ROW(Кукурудза!$L$6:$L$27)-ROW(Кукурудза!$L$6),))) -> 32 | R5: =SUMPRODUCT(((Кукурудза!$G$6:$G$27=База_данних!C5)*SUBTOTAL(9,OFFSET(Кукурудза!K$6,ROW(Кукурудза!$K$6:$K$27)-ROW(Кукурудза!$K$6),)))*2) -> 535
A6: 2014-09-05 | B6: Срібний | C6: =VLOOKUP(B6:B4960,База_авто,2,0) -> Вольво | G6: 400 | H6: =F6*0.4 -> 0 | I6: =400+G6-H6 -> 800 | K6: =База_данних!C6 -> Годзенко | L6: =База_данних!D6 -> Камаз | M6: =SUMIF(Кукурудза!$G$6:$G$27,База_данних!C6,Кукурудза!$AA$6:$AA$27) -> 0 | N6: =SUMIF(Кукурудза!$G$6:$G$27,База_данних!C6,Кукурудза!$A$6:$A$27) -> 0 | O6: =SUMPRODUCT((Кукурудза!$G$6:$G$27=База_данних!C6)*SUBTOTAL(9,OFFSET(Кукурудза!AA$6,ROW(Кукурудза!$AA$6:$AA$27)-ROW(Кукурудза!$AA$6),))) -> 0 | P6: =SUMPRODUCT((Кукурудза!$G$6:$G$27=База_данних!C6)*SUBTOTAL(9,OFFSET(Кукурудза!A$6,ROW(Кукурудза!$A$6:$A$27)-ROW(Кукурудза!$A$6),))) -> 0 | Q6: =SUMPRODUCT((Кукурудза!$G$6:$G$27=База_данних!C6)*SUBTOTAL(9,OFFSET(Кукурудза!L$6,ROW(Кукурудза!$L$6:$L$27)-ROW(Кукурудза!$L$6),))) -> 0 | R6: =SUMPRODUCT(((Кукурудза!$G$6:$G$27=База_данних!C6)*SUBTOTAL(9,OFFSET(Кукурудза!K$6,ROW(Кукурудза!$K$6:$K$27)-ROW(Кукурудза!$K$6),)))*2) -> 0
A7: 2014-09-05 | B7: Кузьменко В | C7: =VLOOKUP(B7:B4961,База_авто,2,0) -> Вольво | G7: 400 | H7: =F7*0.4 -> 0 | I7: =400+G7-H7 -> 800 | K7: =База_данних!C7 -> Демко | L7: =База_данних!D7 -> Маз | M7: =SUMIF(Кукурудза!$G$6:$G$27,База_данних!C7,Кукурудза!$AA$6:$AA$27) -> 0 | N7: =SUMIF(Кукурудза!$G$6:$G$27,База_данних!C7,Кукурудза!$A$6:$A$27) -> 0 | O7: =SUMPRODUCT((Кукурудза!$G$6:$G$27=База_данних!C7)*SUBTOTAL(9,OFFSET(Кукурудза!AA$6,ROW(Кукурудза!$AA$6:$AA$27)-ROW(Кукурудза!$AA$6),))) -> 0 | P7: =SUMPRODUCT((Кукурудза!$G$6:$G$27=База_данних!C7)*SUBTOTAL(9,OFFSET(Кукурудза!A$6,ROW(Кукурудза!$A$6:$A$27)-ROW(Кукурудза!$A$6),))) -> 0 | Q7: =SUMPRODUCT((Кукурудза!$G$6:$G$27=База_данних!C7)*SUBTOTAL(9,OFFSET(Кукурудза!L$6,ROW(Кукурудза!$L$6:$L$27)-ROW(Кукурудза!$L$6),))) -> 0 | R7: =SUMPRODUCT(((Кукурудза!$G$6:$G$27=База_данних!C7)*SUBTOTAL(9,OFFSET(Кукурудза!K$6,ROW(Кукурудза!$K$6:$K$27)-ROW(Кукурудза!$K$6),)))*2) -> 0
C8: =VLOOKUP(B8:B4962,База_авто,2,0) ->  | G8: =SUM(G4:G7) -> 1600 | K8: =База_данних!C8 -> Кузьменко В | L8: =База_данних!D8 -> Вольво | M8: =SUMIF(Кукурудза!$G$6:$G$27,База_данних!C8,Кукурудза!$AA$6:$AA$27) -> 110180 | N8: =SUMIF(Кукурудза!$G$6:$G$27,База_данних!C8,Кукурудза!$A$6:$A$27) -> 3 | O8: =SUMPRODUCT((Кукурудза!$G$6:$G$27=База_данних!C8)*SUBTOTAL(9,OFFSET(Кукурудза!AA$6,ROW(Кукурудза!$AA$6:$AA$27)-ROW(Кукурудза!$AA$6),))) -> 110180 | P8: =SUMPRODUCT((Кукурудза!$G$6:$G$27=База_данних!C8)*SUBTOTAL(9,OFFSET(Кукурудза!A$6,ROW(Кукурудза!$A$6:$A$27)-ROW(Кукурудза!$A$6),))) -> 3 | Q8: =SUMPRODUCT((Кукурудза!$G$6:$G$27=База_данних!C8)*SUBTOTAL(9,OFFSET(Кукурудза!L$6,ROW(Кукурудза!$L$6:$L$27)-ROW(Кукурудза!$L$6),))) -> 32 | R8: =SUMPRODUCT(((Кукурудза!$G$6:$G$27=База_данних!C8)*SUBTOTAL(9,OFFSET(Кукурудза!K$6,ROW(Кукурудза!$K$6:$K$27)-ROW(Кукурудза!$K$6),)))*2) -> 526
A9: 2014-09-06 | B9: Бабиченко | C9: =VLOOKUP(B9:B4963,База_авто,2,0) -> Вольво | H9: =F9*0.4 -> 0 | I9: =I4-H9 -> 800 | K9: =База_данних!C9 -> Кузьменко А | L9: =База_данних!D9 -> Камаз | M9: =SUMIF(Кукурудза!$G$6:$G$27,База_данних!C9,Кукурудза!$AA$6:$AA$27) -> 0 | N9: =SUMIF(Кукурудза!$G$6:$G$27,База_данних!C9,Кукурудза!$A$6:$A$27) -> 0 | O9: =SUMPRODUCT((Кукурудза!$G$6:$G$27=База_данних!C9)*SUBTOTAL(9,OFFSET(Кукурудза!AA$6,ROW(Кукурудза!$AA$6:$AA$27)-ROW(Кукурудза!$AA$6),))) -> 0 | P9: =SUMPRODUCT((Кукурудза!$G$6:$G$27=База_данних!C9)*SUBTOTAL(9,OFFSET(Кукурудза!A$6,ROW(Кукурудза!$A$6:$A$27)-ROW(Кукурудза!$A$6),))) -> 0 | Q9: =SUMPRODUCT((Кукурудза!$G$6:$G$27=База_данних!C9)*SUBTOTAL(9,OFFSET(Кукурудза!L$6,ROW(Кукурудза!$L$6:$L$27)-ROW(Кукурудза!$L$6),))) -> 0 | R9: =SUMPRODUCT(((Кукурудза!$G$6:$G$27=База_данних!C9)*SUBTOTAL(9,OFFSET(Кукурудза!K$6,ROW(Кукурудза!$K$6:$K$27)-ROW(Кукурудза!$K$6),)))*2) -> 0
A10: 2014-09-06 | B10: Соломка | C10: =VLOOKUP(B10:B4964,База_авто,2,0) -> Вольво | H10: 0 | I10: =I5-H10 -> 800 | K10: =База_данних!C10 -> Лисівець | L10: =База_данних!D10 -> Камаз | M10: =SUMIF(Кукурудза!$G$6:$G$27,База_данних!C10,Кукурудза!$AA$6:$AA$27) -> 0 | N10: =SUMIF(Кукурудза!$G$6:$G$27,База_данних!C10,Кукурудза!$A$6:$A$27) -> 0 | O10: =SUMPRODUCT((Кукурудза!$G$6:$G$27=База_данних!C10)*SUBTOTAL(9,OFFSET(Кукурудза!AA$6,ROW(Кукурудза!$AA$6:$AA$27)-ROW(Кукурудза!$AA$6),))) -> 0 | P10: =SUMPRODUCT((Кукурудза!$G$6:$G$27=База_данних!C10)*SUBTOTAL(9,OFFSET(Кукурудза!A$6,ROW(Кукурудза!$A$6:$A$27)-ROW(Кукурудза!$A$6),))) -> 0 | Q10: =SUMPRODUCT((Кукурудза!$G$6:$G$27=База_данних!C10)*SUBTOTAL(9,OFFSET(Кукурудза!L$6,ROW(Кукурудза!$L$6:$L$27)-ROW(Кукурудза!$L$6),))) -> 0 | R10: =SUMPRODUCT(((Кукурудза!$G$6:$G$27=База_данних!C10)*SUBTOTAL(9,OFFSET(Кукурудза!K$6,ROW(Кукурудза!$K$6:$K$27)-ROW(Кукурудза!$K$6),)))*2) -> 0
A11: 2014-09-06 | B11: Срібний | C11: =VLOOKUP(B11:B4965,База_авто,2,0) -> Вольво | H11: 0 | I11: =I6-H11 -> 800 | K11: =База_данних!C11 -> Мандич | L11: =База_данних!D11 -> Камаз | M11: =SUMIF(Кукурудза!$G$6:$G$27,База_данних!C11,Кукурудза!$AA$6:$AA$27) -> 0 | N11: =SUMIF(Кукурудза!$G$6:$G$27,База_данних!C11,Кукурудза!$A$6:$A$27) -> 0 | O11: =SUMPRODUCT((Кукурудза!$G$6:$G$27=База_данних!C11)*SUBTOTAL(9,OFFSET(Кукурудза!AA$6,ROW(Кукурудза!$AA$6:$AA$27)-ROW(Кукурудза!$AA$6),))) -> 0 | P11: =SUMPRODUCT((Кукурудза!$G$6:$G$27=База_данних!C11)*SUBTOTAL(9,OFFSET(Кукурудза!A$6,ROW(Кукурудза!$A$6:$A$27)-ROW(Кукурудза!$A$6),))) -> 0 | Q11: =SUMPRODUCT((Кукурудза!$G$6:$G$27=База_данних!C11)*SUBTOTAL(9,OFFSET(Кукурудза!L$6,ROW(Кукурудза!$L$6:$L$27)-ROW(Кукурудза!$L$6),))) -> 0 | R11: =SUMPRODUCT(((Кукурудза!$G$6:$G$27=База_данних!C11)*SUBTOTAL(9,OFFSET(Кукурудза!K$6,ROW(Кукурудза!$K$6:$K$27)-ROW(Кукурудза!$K$6),)))*2) -> 0
A12: 2014-09-06 | B12: Арендаренко | C12: =VLOOKUP(B12:B4966,База_авто,2,0) -> Вольво | G12: 402 | H12: 0 | I12: =400+G12-H12 -> 802 | K12: =База_данних!C12 -> Михайлик | L12: =База_данних!D12 -> Камаз | M12: =SUMIF(Кукурудза!$G$6:$G$27,База_данних!C12,Кукурудза!$AA$6:$AA$27) -> 0 | N12: =SUMIF(Кукурудза!$G$6:$G$27,База_данних!C12,Кукурудза!$A$6:$A$27) -> 0 | O12: =SUMPRODUCT((Кукурудза!$G$6:$G$27=База_данних!C12)*SUBTOTAL(9,OFFSET(Кукурудза!AA$6,ROW(Кукурудза!$AA$6:$AA$27)-ROW(Кукурудза!$AA$6),))) -> 0 | P12: =SUMPRODUCT((Кукурудза!$G$6:$G$27=База_данних!C12)*SUBTOTAL(9,OFFSET(Кукурудза!A$6,ROW(Кукурудза!$A$6:$A$27)-ROW(Кукурудза!$A$6),))) -> 0 | Q12: =SUMPRODUCT((Кукурудза!$G$6:$G$27=База_данних!C12)*SUBTOTAL(9,OFFSET(Кукурудза!L$6,ROW(Кукурудза!$L$6:$L$27)-ROW(Кукурудза!$L$6),))) -> 0 | R12: =SUMPRODUCT(((Кукурудза!$G$6:$G$27=База_данних!C12)*SUBTOTAL(9,OFFSET(Кукурудза!K$6,ROW(Кукурудза!$K$6:$K$27)-ROW(Кукурудза!$K$6),)))*2) -> 0
A13: 2014-09-06 | B13: Пальонка | C13: =VLOOKUP(B13:B4967,База_авто,2,0) -> Вольво | G13: 400 | H13: 0 | I13: =400+G13-H13 -> 800 | K13: =База_данних!C13 -> Пальонка | L13: =База_данних!D13 -> Вольво | M13: =SUMIF(Кукурудза!$G$6:$G$27,База_данних!C13,Кукурудза!$AA$6:$AA$27) -> 35310 | N13: =SUMIF(Кукурудза!$G$6:$G$27,База_данних!C13,Кукурудза!$A$6:$A$27) -> 1 | O13: =SUMPRODUCT((Кукурудза!$G$6:$G$27=База_данних!C13)*SUBTOTAL(9,OFFSET(Кукурудза!AA$6,ROW(Кукурудза!$AA$6:$AA$27)-ROW(Кукурудза!$AA$6),))) -> 35310 | P13: =SUMPRODUCT((Кукурудза!$G$6:$G$27=База_данних!C13)*SUBTOTAL(9,OFFSET(Кукурудза!A$6,ROW(Кукурудза!$A$6:$A$27)-ROW(Кукурудза!$A$6),))) -> 1 | Q13: =SUMPRODUCT((Кукурудза!$G$6:$G$27=База_данних!C13)*SUBTOTAL(9,OFFSET(Кукурудза!L$6,ROW(Кукурудза!$L$6:$L$27)-ROW(Кукурудза!$L$6),))) -> 8 | R13: =SUMPRODUCT(((Кукурудза!$G$6:$G$27=База_данних!C13)*SUBTOTAL(9,OFFSET(Кукурудза!K$6,ROW(Кукурудза!$K$6:$K$27)-ROW(Кукурудза!$K$6),)))*2) -> 254
A14: 2014-09-06 | B14: Кузьменко В | C14: =VLOOKUP(B14:B4968,База_авто,2,0) -> Вольво | H14: 0 | I14: =I7-H14 -> 800 | K14: =База_данних!C14 -> Соломка | L14: =База_данних!D14 -> Вольво | M14: =SUMIF(Кукурудза!$G$6:$G$27,База_данних!C14,Кукурудза!$AA$6:$AA$27) -> 142300 | N14: =SUMIF(Кукурудза!$G$6:$G$27,База_данних!C14,Кукурудза!$A$6:$A$27) -> 4 | O14: =SUMPRODUCT((Кукурудза!$G$6:$G$27=База_данних!C14)*SUBTOTAL(9,OFFSET(Кукурудза!AA$6,ROW(Кукурудза!$AA$6:$AA$27)-ROW(Кукурудза!$AA$6),))) -> 142300 | P14: =SUMPRODUCT((Кукурудза!$G$6:$G$27=База_данних!C14)*SUBTOTAL(9,OFFSET(Кукурудза!A$6,ROW(Кукурудза!$A$6:$A$27)-ROW(Кукурудза!$A$6),))) -> 4 | Q14: =SUMPRODUCT((Кукурудза!$G$6:$G$27=База_данних!C14)*SUBTOTAL(9,OFFSET(Кукурудза!L$6,ROW(Кукурудза!$L$6:$L$27)-ROW(Кукурудза!$L$6),))) -> 33 | R14: =SUMPRODUCT(((Кукурудза!$G$6:$G$27=База_данних!C14)*SUBTOTAL(9,OFFSET(Кукурудза!K$6,ROW(Кукурудза!$K$6:$K$27)-ROW(Кукурудза!$K$6),)))*2) -> 535
C15: =VLOOKUP(B15:B4969,База_авто,2,0) ->  | G15: =SUM(G9:G14) -> 802 | K15: =База_данних!C15 -> Співак | L15: =База_данних!D15 -> Камаз | M15: =SUMIF(Кукурудза!$G$6:$G$27,База_данних!C15,Кукурудза!$AA$6:$AA$27) -> 0 | N15: =SUMIF(Кукурудза!$G$6:$G$27,База_данних!C15,Кукурудза!$A$6:$A$27) -> 0 | O15: =SUMPRODUCT((Кукурудза!$G$6:$G$27=База_данних!C15)*SUBTOTAL(9,OFFSET(Кукурудза!AA$6,ROW(Кукурудза!$AA$6:$AA$27)-ROW(Кукурудза!$AA$6),))) -> 0 | P15: =SUMPRODUCT((Кукурудза!$G$6:$G$27=База_данних!C15)*SUBTOTAL(9,OFFSET(Кукурудза!A$6,ROW(Кукурудза!$A$6:$A$27)-ROW(Кукурудза!$A$6),))) -> 0 | Q15: =SUMPRODUCT((Кукурудза!$G$6:$G$27=База_данних!C15)*SUBTOTAL(9,OFFSET(Кукурудза!L$6,ROW(Кукурудза!$L$6:$L$27)-ROW(Кукурудза!$L$6),))) -> 0 | R15: =SUMPRODUCT(((Кукурудза!$G$6:$G$27=База_данних!C15)*SUBTOTAL(9,OFFSET(Кукурудза!K$6,ROW(Кукурудза!$K$6:$K$27)-ROW(Кукурудза!$K$6),)))*2) -> 0
A16: 2014-09-07 | B16: Бабиченко | C16: =VLOOKUP(B16:B4970,База_авто,2,0) -> Вольво | H16: =F16*0.4 -> 0 | I16: =I9-H16 -> 800 | K16: =База_данних!C16 -> Срібний | L16: =База_данних!D16 -> Вольво | M16: =SUMIF(Кукурудза!$G$6:$G$27,База_данних!C16,Кукурудза!$AA$6:$AA$27) -> 145320 | N16: =SUMIF(Кукурудза!$G$6:$G$27,База_данних!C16,Кукурудза!$A$6:$A$27) -> 4 | O16: =SUMPRODUCT((Кукурудза!$G$6:$G$27=База_данних!C16)*SUBTOTAL(9,OFFSET(Кукурудза!AA$6,ROW(Кукурудза!$AA$6:$AA$27)-ROW(Кукурудза!$AA$6),))) -> 145320 | P16: =SUMPRODUCT((Кукурудза!$G$6:$G$27=База_данних!C16)*SUBTOTAL(9,OFFSET(Кукурудза!A$6,ROW(Кукурудза!$A$6:$A$27)-ROW(Кукурудза!$A$6),))) -> 4 | Q16: =SUMPRODUCT((Кукурудза!$G$6:$G$27=База_данних!C16)*SUBTOTAL(9,OFFSET(Кукурудза!L$6,ROW(Кукурудза!$L$6:$L$27)-ROW(Кукурудза!$L$6),))) -> 33 | R16: =SUMPRODUCT(((Кукурудза!$G$6:$G$27=База_данних!C16)*SUBTOTAL(9,OFFSET(Кукурудза!K$6,ROW(Кукурудза!$K$6:$K$27)-ROW(Кукурудза!$K$6),)))*2) -> 671
A17: 2014-09-07 | B17: Соломка | C17: =VLOOKUP(B17:B4971,База_авто,2,0) -> Вольво | H17: 0 | I17: =I10-H17 -> 800 | K17: =База_данних!C17 -> Суботін | L17: =База_данних!D17 -> Камаз | M17: =SUMIF(Кукурудза!$G$6:$G$27,База_данних!C17,Кукурудза!$AA$6:$AA$27) -> 0 | N17: =SUMIF(Кукурудза!$G$6:$G$27,База_данних!C17,Кукурудза!$A$6:$A$27) -> 0 | O17: =SUMPRODUCT((Кукурудза!$G$6:$G$27=База_данних!C17)*SUBTOTAL(9,OFFSET(Кукурудза!AA$6,ROW(Кукурудза!$AA$6:$AA$27)-ROW(Кукурудза!$AA$6),))) -> 0 | P17: =SUMPRODUCT((Кукурудза!$G$6:$G$27=База_данних!C17)*SUBTOTAL(9,OFFSET(Кукурудза!A$6,ROW(Кукурудза!$A$6:$A$27)-ROW(Кукурудза!$A$6),))) -> 0 | Q17: =SUMPRODUCT((Кукурудза!$G$6:$G$27=База_данних!C17)*SUBTOTAL(9,OFFSET(Кукурудза!L$6,ROW(Кукурудза!$L$6:$L$27)-ROW(Кукурудза!$L$6),))) -> 0 | R17: =SUMPRODUCT(((Кукурудза!$G$6:$G$27=База_данних!C17)*SUBTOTAL(9,OFFSET(Кукурудза!K$6,ROW(Кукурудза!$K$6:$K$27)-ROW(Кукурудза!$K$6),)))*2) -> 0
A18: 2014-09-07 | B18: Срібний | C18: =VLOOKUP(B18:B4972,База_авто,2,0) -> Вольво | H18: 0 | I18: =I11-H18 -> 800 | K18: =База_данних!C18 -> Тонкошкур | L18: =База_данних!D18 -> Камаз | M18: =SUMIF(Кукурудза!$G$6:$G$27,База_данних!C18,Кукурудза!$AA$6:$AA$27) -> 0 | N18: =SUMIF(Кукурудза!$G$6:$G$27,База_данних!C18,Кукурудза!$A$6:$A$27) -> 0 | O18: =SUMPRODUCT((Кукурудза!$G$6:$G$27=База_данних!C18)*SUBTOTAL(9,OFFSET(Кукурудза!AA$6,ROW(Кукурудза!$AA$6:$AA$27)-ROW(Кукурудза!$AA$6),))) -> 0 | P18: =SUMPRODUCT((Кукурудза!$G$6:$G$27=База_данних!C18)*SUBTOTAL(9,OFFSET(Кукурудза!A$6,ROW(Кукурудза!$A$6:$A$27)-ROW(Кукурудза!$A$6),))) -> 0 | Q18: =SUMPRODUCT((Кукурудза!$G$6:$G$27=База_данних!C18)*SUBTOTAL(9,OFFSET(Кукурудза!L$6,ROW(Кукурудза!$L$6:$L$27)-ROW(Кукурудза!$L$6),))) -> 0 | R18: =SUMPRODUCT(((Кукурудза!$G$6:$G$27=База_данних!C18)*SUBTOTAL(9,OFFSET(Кукурудза!K$6,ROW(Кукурудза!$K$6:$K$27)-ROW(Кукурудза!$K$6),)))*2) -> 0
A19: 2014-09-07 | B19: Арендаренко | C19: =VLOOKUP(B19:B4973,База_авто,2,0) -> Вольво | H19: 0 | I19: =I12-H19 -> 802 | K19: =База_данних!C19 -> Чаричанський | L19: =База_данних!D19 -> Камаз | M19: =SUMIF(Кукурудза!$G$6:$G$27,База_данних!C19,Кукурудза!$AA$6:$AA$27) -> 0 | N19: =SUMIF(Кукурудза!$G$6:$G$27,База_данних!C19,Кукурудза!$A$6:$A$27) -> 0 | O19: =SUMPRODUCT((Кукурудза!$G$6:$G$27=База_данних!C19)*SUBTOTAL(9,OFFSET(Кукурудза!AA$6,ROW(Кукурудза!$AA$6:$AA$27)-ROW(Кукурудза!$AA$6),))) -> 0 | P19: =SUMPRODUCT((Кукурудза!$G$6:$G$27=База_данних!C19)*SUBTOTAL(9,OFFSET(Кукурудза!A$6,ROW(Кукурудза!$A$6:$A$27)-ROW(Кукурудза!$A$6),))) -> 0 | Q19: =SUMPRODUCT((Кукурудза!$G$6:$G$27=База_данних!C19)*SUBTOTAL(9,OFFSET(Кукурудза!L$6,ROW(Кукурудза!$L$6:$L$27)-ROW(Кукурудза!$L$6),))) -> 0 | R19: =SUMPRODUCT(((Кукурудза!$G$6:$G$27=База_данних!C19)*SUBTOTAL(9,OFFSET(Кукурудза!K$6,ROW(Кукурудза!$K$6:$K$27)-ROW(Кукурудза!$K$6),)))*2) -> 0
A20: 2014-09-07 | B20: Пальонка | C20: =VLOOKUP(B20:B4974,База_авто,2,0) -> Вольво | H20: 0 | I20: =I13-H20 -> 800 | K20: =База_данних!C20 -> Шевченко | L20: =База_данних!D20 -> Камаз | M20: =SUMIF(Кукурудза!$G$6:$G$27,База_данних!C20,Кукурудза!$AA$6:$AA$27) -> 0 | N20: =SUMIF(Кукурудза!$G$6:$G$27,База_данних!C20,Кукурудза!$A$6:$A$27) -> 0 | O20: =SUMPRODUCT((Кукурудза!$G$6:$G$27=База_данних!C20)*SUBTOTAL(9,OFFSET(Кукурудза!AA$6,ROW(Кукурудза!$AA$6:$AA$27)-ROW(Кукурудза!$AA$6),))) -> 0 | P20: =SUMPRODUCT((Кукурудза!$G$6:$G$27=База_данних!C20)*SUBTOTAL(9,OFFSET(Кукурудза!A$6,ROW(Кукурудза!$A$6:$A$27)-ROW(Кукурудза!$A$6),))) -> 0 | Q20: =SUMPRODUCT((Кукурудза!$G$6:$G$27=База_данних!C20)*SUBTOTAL(9,OFFSET(Кукурудза!L$6,ROW(Кукурудза!$L$6:$L$27)-ROW(Кукурудза!$L$6),))) -> 0 | R20: =SUMPRODUCT(((Кукурудза!$G$6:$G$27=База_данних!C20)*SUBTOTAL(9,OFFSET(Кукурудза!K$6,ROW(Кукурудза!$K$6:$K$27)-ROW(Кукурудза!$K$6),)))*2) -> 0
A21: 2014-09-07 | B21: Кузьменко В | C21: =VLOOKUP(B21:B4975,База_авто,2,0) -> Вольво | H21: 0 | I21: =I14-H21 -> 800 | K21: =База_данних!C21 -> Губаренко | L21: =База_данних!D21 -> Камаз | M21: =SUMIF(Кукурудза!$G$6:$G$27,База_данних!C21,Кукурудза!$AA$6:$AA$27) -> 0 | N21: =SUMIF(Кукурудза!$G$6:$G$27,База_данних!C21,Кукурудза!$A$6:$A$27) -> 0 | O21: =SUMPRODUCT((Кукурудза!$G$6:$G$27=База_данних!C21)*SUBTOTAL(9,OFFSET(Кукурудза!AA$6,ROW(Кукурудза!$AA$6:$AA$27)-ROW(Кукурудза!$AA$6),))) -> 0 | P21: =SUMPRODUCT((Кукурудза!$G$6:$G$27=База_данних!C21)*SUBTOTAL(9,OFFSET(Кукурудза!A$6,ROW(Кукурудза!$A$6:$A$27)-ROW(Кукурудза!$A$6),))) -> 0 | Q21: =SUMPRODUCT((Кукурудза!$G$6:$G$27=База_данних!C21)*SUBTOTAL(9,OFFSET(Кукурудза!L$6,ROW(Кукурудза!$L$6:$L$27)-ROW(Кукурудза!$L$6),))) -> 0 | R21: =SUMPRODUCT(((Кукурудза!$G$6:$G$27=База_данних!C21)*SUBTOTAL(9,OFFSET(Кукурудза!K$6,ROW(Кукурудза!$K$6:$K$27)-ROW(Кукурудза!$K$6),)))*2) -> 0
C22: =VLOOKUP(B22:B4976,База_авто,2,0) ->  | G22: =SUM(G16:G21) -> 0 | K22: =База_данних!C22 -> 0 | L22: =База_данних!D22 -> 0
A23: 2014-09-08 | B23: Бабиченко | C23: =VLOOKUP(B23:B4977,База_авто,2,0) -> Вольво | H23: =F23*0.4 -> 0 | I23: =I16-H23 -> 800 | K23: =База_данних!C23 -> 0 | L23: =База_данних!D23 -> 0
A24: 2014-09-08 | B24: Соломка | C24: =VLOOKUP(B24:B4978,База_авто,2,0) -> Вольво | H24: =F24*0.4 -> 0 | I24: =I17-H24 -> 800 | K24: =База_данних!C24 -> 0 | L24: =База_данних!D24 -> 0
A25: 2014-09-08 | B25: Срібний | C25: =VLOOKUP(B25:B4979,База_авто,2,0) -> Вольво | H25: =F25*0.4 -> 0 | I25: =I18-H25 -> 800 | K25: =База_данних!C25 -> 0 | L25: =База_данних!D25 -> 0
A26: 2014-09-08 | B26: Пальонка | C26: =VLOOKUP(B26:B4980,База_авто,2,0) -> Вольво | H26: =F26*0.4 -> 0 | I26: =I20-H26 -> 800 | K26: =База_данних!C26 -> 0 | L26: =База_данних!D26 -> 0
A27: 2014-09-08 | B27: Кузьменко В | C27: =VLOOKUP(B27:B4981,База_авто,2,0) -> Вольво | H27: =F27*0.4 -> 0 | I27: =I21-H27 -> 800 | K27: =База_данних!C27 -> 0 | L27: =База_данних!D27 -> 0
C28: =VLOOKUP(B28:B4982,База_авто,2,0) ->  | G28: =SUM(G23:G27) -> 0 | K28: =База_данних!C28 -> 0 | L28: =База_данних!D28 -> 0
A29: 2014-09-09 | B29: Кузьменко В | C29: =VLOOKUP(B29:B4983,База_авто,2,0) -> Вольво | G29: 591 | H29: =F29*0.4 -> 0 | I29: =I27+G29-H29 -> 1391 | K29: =База_данних!C29 -> 0 | L29: =База_данних!D29 -> 0
A30: 2014-09-09 | B30: Пальонка | C30: =VLOOKUP(B30:B4984,База_авто,2,0) -> Вольво | H30: 0 | I30: =I26-H30 -> 800 | K30: =База_данних!C30 -> 0 | L30: =База_данних!D30 -> 0
A31: 2014-09-09 | B31: Срібний | C31: =VLOOKUP(B31:B4985,База_авто,2,0) -> Вольво | G31: 460 | H31: 0 | I31: =I25+G31-H31 -> 1260 | K31: =База_данних!C31 -> 0 | L31: =База_данних!D31 -> 0
A32: 2014-09-09 | B32: Бабиченко | C32: =VLOOKUP(B32:B4986,База_авто,2,0) -> Вольво | H32: 0 | I32: =I23-H32 -> 800 | K32: =База_данних!C32 -> 0 | L32: =База_данних!D32 -> 0
A33: 2014-09-09 | B33: Соломка | C33: =VLOOKUP(B33:B4987,База_авто,2,0) -> Вольво | H33: 0 | I33: =I24-H33 -> 800 | K33: =База_данних!C33 -> 0 | L33: =База_данних!D33 -> 0
A34: 2014-09-09 | B34: Тонкошкур | C34: =VLOOKUP(B34:B4988,База_авто,2,0) -> Камаз | G34: 100 | H34: 0 | I34: =G34-H34 -> 100 | K34: =База_данних!C34 -> 0 | L34: =База_данних!D34 -> 0
A35: 2014-09-09 | B35: Суботін | C35: =VLOOKUP(B35:B4989,База_авто,2,0) -> Камаз | H35: 0 | I35: =132.6-H35 -> 132.6 | K35: =База_данних!C35 -> 0 | L35: =База_данних!D35 -> 0
A36: 2014-09-09 | B36: Лисівець | C36: =VLOOKUP(B36:B4990,База_авто,2,0) -> Камаз | G36: 120 | H36: 0 | I36: =62.3-H36 -> 62.3 | K36: =База_данних!C36 -> 0 | L36: =База_данних!D36 -> 0
C37: =VLOOKUP(B37:B4991,База_авто,2,0) ->  | G37: =SUM(G29:G36) -> 1271 | K37: =База_данних!C37 -> 0 | L37: =База_данних!D37 -> 0
A38: 2014-09-10 | B38: Кузьменко В | C38: =VLOOKUP(B38:B4992,База_авто,2,0) -> Вольво | H38: =F38*0.4 -> 0 | K38: =База_данних!C38 -> 0 | L38: =База_данних!D38 -> 0
A39: 2014-09-10 | B39: Пальонка | C39: =VLOOKUP(B39:B4993,База_авто,2,0) -> Вольво | H39: 0 | K39: =База_данних!C39 -> 0 | L39: =База_данних!D39 -> 0
A40: 2014-09-10 | B40: Срібний | C40: =VLOOKUP(B40:B4994,База_авто,2,0) -> Вольво | H40: 0 | K40: =База_данних!C40 -> 0 | L40: =База_данних!D40 -> 0
A41: 2014-09-10 | B41: Бабиченко | C41: =VLOOKUP(B41:B4995,База_авто,2,0) -> Вольво | H41: 0 | K41: Всього: | M41: =SUM(M4:M40) -> 614710 | N41: =SUM(N4:N40) -> 17 | O41: =SUM(O4:O40) -> 614710 | P41: =SUM(P4:P40) -> 17 | Q41: =SUM(Q4:Q40) -> 154 | R41: =SUM(R4:R40) -> 2784
A42: 2014-09-10 | B42: Соломка | C42: =VLOOKUP(B42:B4996,База_авто,2,0) -> Вольво | H42: 0
A43: 2014-09-10 | B43: Тонкошкур | C43: =VLOOKUP(B43:B4997,База_авто,2,0) -> Камаз | H43: 0
A44: 2014-09-10 | B44: Суботін | C44: =VLOOKUP(B44:B4998,База_авто,2,0) -> Камаз | H44: 0
A45: 2014-09-10 | B45: Лисівець | C45: =VLOOKUP(B45:B4999,База_авто,2,0) -> Камаз | H45: 0
C46: =VLOOKUP(B46:B5000,База_авто,2,0) ->  | G46: =SUM(G38:G45) -> 0
C47: =VLOOKUP(B47:B5001,База_авто,2,0) -> 
C48: =VLOOKUP(B48:B5002,База_авто,2,0) -> 
C49: =VLOOKUP(B49:B5003,База_авто,2,0) -> 

Sheet Кукурудза
A1: Збір кукурудзи урожаю 2014 року
A3: К-сть ходок | B3: Дата | C3: П.І.Б. диспетчера | D3: Назва господарства | E3: Відповідальна особа на полі | F3: Відповідальна особа на ККЗ | G3: ПІБ водія | H3: Марка машини д/з | I3: № поля | J3: площа | K3: відстань до ККЗ, км. | L3: К-сть бункерів | M3: № накладної | N3: Час заїзду на поле | O3: Час виїзду з поля | P3: Час дзвінка відповідального | Q3: Час на дорогу 55км/ год | R3: Час витр. на дорогу | S3: Час на прстой біля воріт | T3: Час прибуття | U3: Час приїзду до заводу | V3: Час заїзду на завод | W3: Час виїзду із заводу | X3: Вологість | Y3: Вага | AB3: Загальна вага | AC3: Примітки
Q4: (ПРОГНОЗ) | T4: (ПРОГНОЗ) | Y4: Брутто | Z4: Тара | AA4: Нетто | AB4: =SUM(AB6:AB3433) -> 216730
A6: =IF(AA6>0,1,0) -> 1 | B6: 2014-09-05 | C6: Косолап Н.П. | D6: Хлібороб | E6: Мандич | F6: Гарець Л | G6: Бабиченко | H6: =VLOOKUP(G6:G27,База_авто,2,0) -> Вольво | I6: 1 | J6: =IFERROR(INDEX(База_полів,MATCH($I6,INDIRECT($D6),)+2,MATCH($D6,Господарства_2,)+COLUMN(A6)),"") -> 96.5 | K6: =IFERROR(INDEX(База_полів,MATCH($I6,INDIRECT($D6),)+2,MATCH($D6,Господарства_2,)+COLUMN(B6)),"") -> 68 | L6: 8 | M6: 1 | N6: 12:20:00 | O6: 14:30:00 | P6: 14:35:00 | Q6: =K6/55/23 -> 01:17:24.427 | R6: =U6-O6 -> 01:10:00 | S6: =V6-U6 -> 00:05:00 | T6: =O6+Q6 -> 15:47:24.427 | U6: 15:40:00 | V6: 15:45:00 | W6: 16:05:00 | X6: 17.3 | Y6: 51380 | Z6: 15010 | AA6: =Y6-Z6 -> 36370
A7: =IF(AA7>0,1,0) -> 1 | B7: 2014-09-05 | C7: Косолап Н.П. | D7: Хлібороб | E7: Мандич | F7: Гарець Л | G7: Соломка | H7: =VLOOKUP(G7:G27,База_авто,2,0) -> Вольво | I7: 1 | J7: =IFERROR(INDEX(База_полів,MATCH($I7,INDIRECT($D7),)+2,MATCH($D7,Господарства_2,)+COLUMN(A7)),"") -> 96.5 | K7: =IFERROR(INDEX(База_полів,MATCH($I7,INDIRECT($D7),)+2,MATCH($D7,Господарства_2,)+COLUMN(B7)),"") -> 68 | L7: 8 | M7: 2 | N7: 12:25:00 | O7: 15:55:00 | P7: 15:50:00 | Q7: =K7/55/23 -> 01:17:24.427 | R7: =U7-O7 -> 01:05:00 | S7: =V7-U7 -> 00:10:00 | T7: =O7+Q7 -> 17:12:24.427 | U7: 17:00:00 | V7: 17:10:00 | W7: 17:25:00 | X7: 17.8 | Y7: 50250 | Z7: 15180 | AA7: =Y7-Z7 -> 35070
A8: 1 | B8: 2014-09-05 | C8: Косолап Н.П. | D8: Хлібороб | E8: Мандич | F8: Гарець Л | G8: Срібний | H8: =VLOOKUP(G8:G27,База_авто,2,0) -> Вольво | I8: 1 | J8: =IFERROR(INDEX(База_полів,MATCH($I8,INDIRECT($D8),)+2,MATCH($D8,Господарства_2,)+COLUMN(A8)),"") -> 96.5 | K8: =IFERROR(INDEX(База_полів,MATCH($I8,INDIRECT($D8),)+2,MATCH($D8,Господарства_2,)+COLUMN(B8)),"") -> 68 | L8: 8 | M8: 3 | N8: 14:20:00 | O8: 17:45:00 | P8: 17:50:00 | Q8: 01:17:24.427 | R8: 01:03:00 | S8: 00:08:00 | T8: 19:02:24.427 | U8: 18:48:00 | V8: 18:56:00 | W8: 19:10:00 | X8: 16.5 | Y8: 50920 | Z8: 14720 | AA8: =Y8-Z8 -> 36200
A9: 1 | B9: 2014-09-05 | C9: Косолап Н.П. | D9: Хлібороб | E9: Мандич | F9: Гарець Л | G9: Кузьменко В | H9: =VLOOKUP(G9:G27,База_авто,2,0) -> Вольво | I9: 1 | J9: =IFERROR(INDEX(База_полів,MATCH($I9,INDIRECT($D9),)+2,MATCH($D9,Господарства_2,)+COLUMN(A9)),"") -> 96.5 | K9: =IFERROR(INDEX(База_полів,MATCH($I9,INDIRECT($D9),)+2,MATCH($D9,Господарства_2,)+COLUMN(B9)),"") -> 68 | L9: 8 | M9: 4 | N9: 14:30:00 | O9: 18:25:00 | P9: 18:30:00 | Q9: 01:17:24.427 | R9: 01:15:00 | S9: 00:08:00 | T9: 19:42:24.427 | U9: 19:40:00 | V9: 19:48:00 | W9: 20:05:00 | X9: 17.9 | Y9: 51770 | Z9: 14980 | AA9: 36790
A10: 1 | B10: 2014-09-05 | C10: Косолап Н.П. | D10: Хлібороб | E10: Мандич | F10: Гарець Л | G10: Бабиченко | H10: =VLOOKUP(G10:G27,База_авто,2,0) -> Вольво | I10: 1 | J10: =IFERROR(INDEX(База_полів,MATCH($I10,INDIRECT($D10),)+2,MATCH($D10,Господарства_2,)+COLUMN(A10)),"") -> 96.5 | K10: =IFERROR(INDEX(База_полів,MATCH($I10,INDIRECT($D10),)+2,MATCH($D10,Господарства_2,)+COLUMN(B10)),"") -> 68 | L10: 8 | M10: 5 | N10: 17:10:00 | O10: 19:20:00 | P10: 19:25:00 | Q10: 01:17:24.427 | R10: 01:02:00 | S10: 00:08:00 | T10: 20:37:24.427 | U10: 20:22:00 | V10: 20:30:00 | W10: 20:40:00 | X10: 17.8 | Y10: 51470 | Z10: 14980 | AA10: 36490
A11: 1 | B11: 2014-09-05 | C11: Косолап Н.П. | D11: Хлібороб | E11: Мандич | F11: Гарець Л | G11: Соломка | H11: =VLOOKUP(G11:G27,База_авто,2,0) -> Вольво | I11: 1 | J11: =IFERROR(INDEX(База_полів,MATCH($I11,INDIRECT($D11),)+2,MATCH($D11,Господарства_2,)+COLUMN(A11)),"") -> 96.5 | K11: =IFERROR(INDEX(База_полів,MATCH($I11,INDIRECT($D11),)+2,MATCH($D11,Господарства_2,)+COLUMN(B11)),"") -> 68 | L11: 8 | M11: 6 | N11: 18:45:00 | O11: 20:20:00 | P11: 20:25:00 | Q11: 01:17:24.427 | R11: 01:10:00 | S11: 00:05:00 | T11: 21:37:24.427 | U11: 21:30:00 | V11: 21:35:00 | W11: 21:50:00 | X11: 17 | Y11: 50960 | Z11: 15150 | AA11: 35810
A12: 0 | B12: 2014-09-05 | C12: Косолап Н.П. | D12: Хлібороб | E12: Мандич | G12: Срібний | H12: =VLOOKUP(G12:G27,База_авто,2,0) -> Вольво | I12: 1 | J12: =IFERROR(INDEX(База_полів,MATCH($I12,INDIRECT($D12),)+2,MATCH($D12,Господарства_2,)+COLUMN(A12)),"") -> 96.5 | K12: =IFERROR(INDEX(База_полів,MATCH($I12,INDIRECT($D12),)+2,MATCH($D12,Господарства_2,)+COLUMN(B12)),"") -> 68 | N12: 20:15:00 | O12: 21:20:00 | P12: 21:25:00 | Q12: 01:17:24.427 | R12: -0.8888888889 | S12: 00:00:00 | T12: 22:37:24.427 | AA12: 0 | AC12: на комору
A13: =SUM(A6:A12) -> 6 | L13: =SUM(L6:L12) -> 48 | AA13: =SUM(AA6:AA12) -> 216730 | AB13: =AA13 -> 216730
A14: 1 | B14: 2014-09-06 | C14: Лаврік Н.О. | D14: Хлібороб | E14: Мандич | F14: Лук`яненко | G14: Кузьменко В | H14: =VLOOKUP(G14:G27,База_авто,2,0) -> Вольво | I14: 1 | J14: =IFERROR(INDEX(База_полів,MATCH($I14,INDIRECT($D14),)+2,MATCH($D14,Господарства_2,)+COLUMN(A14)),"") -> 96.5 | K14: =IFERROR(INDEX(База_полів,MATCH($I14,INDIRECT($D14),)+2,MATCH($D14,Господарства_2,)+COLUMN(B14)),"") -> 68 | L14: 8 | M14: 8 | N14: 09:00:00 | O14: 10:25:00 | P14: 10:27:00 | Q14: 01:17:24.427 | R14: 01:05:00 | S14: 00:05:00 | T14: 11:42:24.427 | U14: 11:30:00 | V14: 11:35:00 | W14: 11:51:00 | X14: 17 | Y14: 51280 | Z14: 14940 | AA14: 36340
A15: 1 | B15: 2014-09-06 | C15: Лаврік Н.О. | D15: Хлібороб | E15: Мандич | F15: Лук`яненко | G15: Бабиченко | H15: =VLOOKUP(G15:G27,База_авто,2,0) -> Вольво | I15: 1 | J15: =IFERROR(INDEX(База_полів,MATCH($I15,INDIRECT($D15),)+2,MATCH($D15,Господарства_2,)+COLUMN(A15)),"") -> 96.5 | K15: =IFERROR(INDEX(База_полів,MATCH($I15,INDIRECT($D15),)+2,MATCH($D15,Господарства_2,)+COLUMN(B15)),"") -> 68 | L15: 8 | M15: 9 | N15: 09:10:00 | O15: 11:15:00 | P15: 11:18:00 | Q15: 01:17:24.427 | R15: 01:15:00 | S15: 00:05:00 | T15: 12:32:24.427 | U15: 12:30:00 | V15: 12:35:00 | W15: 12:55:00 | X15: 17 | Y15: 51290 | Z15: 14990 | AA15: 36300
A16: 1 | B16: 2014-09-06 | C16: Лаврік Н.О. | D16: Хлібороб | E16: Мандич | F16: Лук`яненко | G16: Соломка | H16: =VLOOKUP(G16:G27,База_авто,2,0) -> Вольво | I16: 1 | J16: =IFERROR(INDEX(База_полів,MATCH($I16,INDIRECT($D16),)+2,MATCH($D16,Господарства_2,)+COLUMN(A16)),"") -> 96.5 | K16: =IFERROR(INDEX(База_полів,MATCH($I16,INDIRECT($D16),)+2,MATCH($D16,Господарства_2,)+COLUMN(B16)),"") -> 68 | L16: 8 | M16: 10 | N16: 09:10:00 | O16: 12:40:00 | P16: 12:42:00 | Q16: 01:17:24.427 | R16: 01:01:00 | S16: 00:04:00 | T16: 13:57:24.427 | U16: 13:41:00 | V16: 13:45:00 | W16: 14:00:00 | X16: 17 | Y16: 51110 | Z16: 15120 | AA16: 35990
A17: 1 | B17: 2014-09-06 | C17: Лаврік Н.О. | D17: Хлібороб | E17: Мандич | F17: Лук`яненко | G17: Срібний | H17: =VLOOKUP(G17:G28,База_авто,2,0) -> Вольво | I17: 1 | J17: =IFERROR(INDEX(База_полів,MATCH($I17,INDIRECT($D17),)+2,MATCH($D17,Господарства_2,)+COLUMN(A17)),"") -> 96.5 | K17: =IFERROR(INDEX(База_полів,MATCH($I17,INDIRECT($D17),)+2,MATCH($D17,Господарства_2,)+COLUMN(B17)),"") -> 68 | L17: 8 | M17: 7 | O17: 09:35:00 | P17: 09:36:00 | Q17: 01:17:24.427 | R17: 00:55:00 | S17: 00:06:00 | T17: 10:52:24.427 | U17: 10:30:00 | V17: 10:36:00 | W17: 10:55:00 | X17: 16 | Y17: 51760 | Z17: 14680 | AA17: 37080
A18: 1 | B18: 2014-09-06 | C18: Лаврік Н.О. | D18: Хлібороб | E18: Мандич | F18: Лук`яненко | G18: Срібний | H18: =VLOOKUP(G18:G29,База_авто,2,0) -> Вольво | I18: 1 | J18: =IFERROR(INDEX(База_полів,MATCH($I18,INDIRECT($D18),)+2,MATCH($D18,Господарства_2,)+COLUMN(A18)),"") -> 96.5 | K18: =IFERROR(INDEX(База_полів,MATCH($I18,INDIRECT($D18),)+2,MATCH($D18,Господарства_2,)+COLUMN(B18)),"") -> 68 | L18: 8 | M18: 11 | N18: 12:00:00 | O18: 13:10:00 | P18: 13:12:00 | Q18: 01:17:24.427 | R18: 01:03:00 | S18: 00:07:00 | T18: 14:27:24.427 | U18: 14:13:00 | V18: 14:20:00 | W18: 14:30:00 | X18: 16.9 | Y18: 50480 | Z18: 14640 | AA18: 35840
A19: 1 | B19: 2014-09-06 | C19: Лаврік Н.О. | D19: Хлібороб | E19: Мандич | F19: Лук`яненко | G19: Арендаренко | H19: =VLOOKUP(G19:G30,База_авто,2,0) -> Вольво | I19: 1 | J19: =IFERROR(INDEX(База_полів,MATCH($I19,INDIRECT($D19),)+2,MATCH($D19,Господарства_2,)+COLUMN(A19)),"") -> 96.5 | K19: =IFERROR(INDEX(База_полів,MATCH($I19,INDIRECT($D19),)+2,MATCH($D19,Господарства_2,)+COLUMN(B19)),"") -> 68 | L19: 8 | M19: 12 | N19: 12:10:00 | O19: 14:10:00 | P19: 14:10:00 | Q19: 01:17:24.427 | R19: 01:00:00 | S19: 00:05:00 | T19: 15:27:24.427 | U19: 15:10:00 | V19: 15:15:00 | W19: 15:30:00 | X19: 16.7 | Y19: 50800 | Z19: 14710 | AA19: 36090
A20: 1 | B20: 2014-09-06 | C20: Лаврік Н.О. | D20: Хлібороб | E20: Мандич | F20: Лук`яненко | G20: Пальонка | H20: =VLOOKUP(G20:G31,База_авто,2,0) -> Вольво | I20: 6 | J20: =IFERROR(INDEX(База_полів,MATCH($I20,INDIRECT($D20),)+2,MATCH($D20,Господарства_2,)+COLUMN(A20)),"") -> 75.5 | K20: =IFERROR(INDEX(База_полів,MATCH($I20,INDIRECT($D20),)+2,MATCH($D20,Господарства_2,)+COLUMN(B20)),"") -> 63.5 | L20: 8 | M20: 14 | N20: 13:15:00 | O20: 17:00:00 | P20: 17:03:00 | Q20: 01:12:17.075 | R20: 01:10:00 | S20: 00:05:00 | T20: 18:12:17.075 | U20: 18:10:00 | V20: 18:15:00 | W20: 18:25:00 | X20: 16 | Y20: 50140 | Z20: 14830 | AA20: 35310
A21: 1 | B21: 2014-09-06 | C21: Лаврік Н.О. | D21: Хлібороб | E21: Мандич | F21: Лук`яненко | G21: Кузьменко В | H21: =VLOOKUP(G21:G32,База_авто,2,0) -> Вольво | I21: 6 | J21: =IFERROR(INDEX(База_полів,MATCH($I21,INDIRECT($D21),)+2,MATCH($D21,Господарства_2,)+COLUMN(A21)),"") -> 75.5 | K21: =IFERROR(INDEX(База_полів,MATCH($I21,INDIRECT($D21),)+2,MATCH($D21,Господарства_2,)+COLUMN(B21)),"") -> 63.5 | L21: 8 | M21: 13 | N21: 13:15:00 | O21: 15:50:00 | P21: 15:55:00 | Q21: 01:12:17.075 | R21: 01:08:00 | S21: 00:07:00 | T21: 17:02:17.075 | U21: 16:58:00 | V21: 17:05:00 | W21: 17:20:00 | X21: 17 | Y21: 51960 | Z21: 14910 | AA21: 37050
A22: 1 | B22: 2014-09-06 | C22: Лаврік Н.О. | D22: Хлібороб | E22: Мандич | F22: Лук`яненко | G22: Бабиченко | H22: =VLOOKUP(G22:G33,База_авто,2,0) -> Вольво | I22: 6 | J22: =IFERROR(INDEX(База_полів,MATCH($I22,INDIRECT($D22),)+2,MATCH($D22,Господарства_2,)+COLUMN(A22)),"") -> 75.5 | K22: =IFERROR(INDEX(База_полів,MATCH($I22,INDIRECT($D22),)+2,MATCH($D22,Господарства_2,)+COLUMN(B22)),"") -> 63.5 | L22: 8 | M22: 15 | N22: 13:50:00 | O22: 18:50:00 | P22: 18:52:00 | Q22: 01:12:17.075 | R22: 00:50:00 | S22: 00:05:00 | T22: 20:02:17.075 | U22: 19:40:00 | V22: 19:45:00 | W22: 20:00:00 | X22: 14.2 | Y22: 51310 | Z22: 14960 | AA22: 36350
A23: 1 | B23: 2014-09-06 | C23: Лаврік Н.О. | D23: Хлібороб | E23: Мандич | F23: Лук`яненко | G23: Соломка | H23: =VLOOKUP(G23:G34,База_авто,2,0) -> Вольво | I23: 6 | J23: =IFERROR(INDEX(База_полів,MATCH($I23,INDIRECT($D23),)+2,MATCH($D23,Господарства_2,)+COLUMN(A23)),"") -> 75.5 | K23: =IFERROR(INDEX(База_полів,MATCH($I23,INDIRECT($D23),)+2,MATCH($D23,Господарства_2,)+COLUMN(B23)),"") -> 63.5 | L23: 9 | M23: 16 | N23: 15:00:00 | O23: 18:55:00 | P23: 18:55:00 | Q23: 01:12:17.075 | R23: 00:55:00 | S23: 00:05:00 | T23: 20:07:17.075 | U23: 19:50:00 | V23: 19:55:00 | W23: 20:15:00 | X23: 14.1 | Y23: 50520 | Z23: 15090 | AA23: 35430
A24: 1 | B24: 2014-09-06 | C24: Лаврік Н.О. | D24: Хлібороб | E24: Мандич | F24: Лук`яненко | G24: Срібний | H24: =VLOOKUP(G24:G35,База_авто,2,0) -> Вольво | I24: 6 | J24: =IFERROR(INDEX(База_полів,MATCH($I24,INDIRECT($D24),)+2,MATCH($D24,Господарства_2,)+COLUMN(A24)),"") -> 75.5 | K24: =IFERROR(INDEX(База_полів,MATCH($I24,INDIRECT($D24),)+2,MATCH($D24,Господарства_2,)+COLUMN(B24)),"") -> 63.5 | L24: 9 | M24: 17 | N24: 15:40:00 | O24: 19:50:00 | P24: 19:50:00 | Q24: 01:12:17.075 | R24: 01:00:00 | S24: 00:05:00 | T24: 21:02:17.075 | U24: 20:50:00 | V24: 20:55:00 | W24: 21:10:00 | X24: 14.1 | Y24: 50810 | Z24: 14610 | AA24: 36200
A25: 0 | B25: 2014-09-06 | C25: Лаврік Н.О. | D25: Хлібороб | E25: Мандич | G25: Арендаренко | H25: =VLOOKUP(G25:G36,База_авто,2,0) -> Вольво | I25: 6 | J25: =IFERROR(INDEX(База_полів,MATCH($I25,INDIRECT($D25),)+2,MATCH($D25,Господарства_2,)+COLUMN(A25)),"") -> 75.5 | K25: =IFERROR(INDEX(База_полів,MATCH($I25,INDIRECT($D25),)+2,MATCH($D25,Господарства_2,)+COLUMN(B25)),"") -> 63.5 | L25: 8 | M25: 18 | N25: 16:40:00 | O25: 20:20:00 | P25: 20:20:00 | Q25: 01:12:17.075 | R25: -0.8472222222 | S25: 00:00:00 | T25: 21:32:17.075 | AA25: 0 | AC25: в коморі
A26: 0 | B26: 2014-09-06 | C26: Лаврік Н.О. | D26: Хлібороб | E26: Мандич | G26: Кузьменко В | H26: =VLOOKUP(G26:G37,База_авто,2,0) -> Вольво | I26: 6 | J26: =IFERROR(INDEX(База_полів,MATCH($I26,INDIRECT($D26),)+2,MATCH($D26,Господарства_2,)+COLUMN(A26)),"") -> 75.5 | K26: =IFERROR(INDEX(База_полів,MATCH($I26,INDIRECT($D26),)+2,MATCH($D26,Господарства_2,)+COLUMN(B26)),"") -> 63.5 | L26: 8 | M26: 19 | N26: 18:20:00 | O26: 21:10:00 | P26: 21:15:00 | Q26: 01:12:17.075 | R26: -0.8819444444 | S26: 00:00:00 | T26: 22:22:17.075 | AA26: 0 | AC26: в коморі
A27: 0 | B27: 2014-09-06 | C27: Лаврік Н.О. | D27: Хлібороб | E27: Мандич | G27: Пальонка | H27: =VLOOKUP(G27:G38,База_авто,2,0) -> Вольво | I27: 6 | J27: =IFERROR(INDEX(База_полів,MATCH($I27,INDIRECT($D27),)+2,MATCH($D27,Господарства_2,)+COLUMN(A27)),"") -> 75.5 | K27: =IFERROR(INDEX(База_полів,MATCH($I27,INDIRECT($D27),)+2,MATCH($D27,Господарства_2,)+COLUMN(B27)),"") -> 63.5 | N27: 19:30:00 | O27: 20:00:00 | P27: 20:00:00 | Q27: 01:12:17.075 | R27: -0.8333333333 | S27: 00:00:00 | T27: 21:12:17.075 | AA27: 0 | AC27: поїхав в Еліту на соняшник
